[Event "Early-Titled-Tuesday-Blitz-January-30-2024"]
[Site "Chess.com"]
[Date "2024.01.30"]
[Round "3"]
[White "korkmaz16"]
[Black "PolandHussars"]
[Result "1-0"]
[WhiteElo "2461"]
[BlackElo "2602"]
[TimeControl "180+1"]
[EndTime "8:30:44 PST"]
[Termination "korkmaz16 won by checkmate"]

1. d4 {[%clk 0:03:00.9]} 1... Nf6 {[%clk 0:02:57.9]} 2. c4 {[%clk 0:02:59.9]}
2... c5 {[%clk 0:02:58.1]} 3. d5 {[%clk 0:02:59.1]} 3... e6 {[%clk 0:02:58.6]}
4. Nc3 {[%clk 0:02:56.8]} 4... exd5 {[%clk 0:02:59.1]} 5. cxd5 {[%clk
0:02:57.2]} 5... d6 {[%clk 0:02:59.5]} 6. Nf3 {[%clk 0:02:51.2]} 6... g6 {[%clk
0:02:59.1]} 7. Bg5 {[%clk 0:02:40.5]} 7... h6 {[%clk 0:02:54.5]} 8. Bh4 {[%clk
0:02:38.5]} 8... a6 {[%clk 0:02:55]} 9. a4 {[%clk 0:02:37.8]} 9... g5 {[%clk
0:02:55.4]} 10. Bg3 {[%clk 0:02:37.7]} 10... Nh5 {[%clk 0:02:56.1]} 11. e3
{[%clk 0:02:32.9]} 11... Bg7 {[%clk 0:02:50.1]} 12. Be2 {[%clk 0:02:30.8]} 12...
Nxg3 {[%clk 0:02:50.1]} 13. hxg3 {[%clk 0:02:30.4]} 13... Nd7 {[%clk 0:02:50.8]}
14. Qc2 {[%clk 0:02:21.2]} 14... Nf6 {[%clk 0:02:49.5]} 15. Nd2 {[%clk
0:02:16.7]} 15... O-O {[%clk 0:02:48.6]} 16. a5 {[%clk 0:01:48.1]} 16... Re8
{[%clk 0:02:46.7]} 17. O-O {[%clk 0:01:47.6]} 17... Bd7 {[%clk 0:02:29]} 18. Nc4
{[%clk 0:01:46.2]} 18... Bb5 {[%clk 0:02:22.9]} 19. Nxb5 {[%clk 0:01:39]} 19...
axb5 {[%clk 0:02:22.9]} 20. Nb6 {[%clk 0:01:39.3]} 20... b4 {[%clk 0:02:23.5]}
21. Nxa8 {[%clk 0:01:38.6]} 21... Qxa8 {[%clk 0:02:24.4]} 22. Bc4 {[%clk
0:01:34.5]} 22... Ne4 {[%clk 0:01:59.9]} 23. a6 {[%clk 0:01:28.5]} 23... bxa6
{[%clk 0:01:57.6]} 24. Rxa6 {[%clk 0:01:28.1]} 24... Qd8 {[%clk 0:01:57.1]} 25.
Rfa1 {[%clk 0:01:26.1]} 25... Nf6 {[%clk 0:01:46.3]} 26. Ra8 {[%clk 0:01:17.4]}
26... Qxa8 {[%clk 0:01:39.1]} 27. Rxa8 {[%clk 0:01:17.5]} 27... Rxa8 {[%clk
0:01:40]} 28. f3 {[%clk 0:01:14.9]} 28... Nd7 {[%clk 0:01:35.5]} 29. Kh2 {[%clk
0:01:03.2]} 29... Ne5 {[%clk 0:01:28.2]} 30. Bb5 {[%clk 0:00:59.5]} 30... Ra2
{[%clk 0:01:27.1]} 31. Qf5 {[%clk 0:00:52.4]} 31... Rxb2 {[%clk 0:01:27.2]} 32.
f4 {[%clk 0:00:52.8]} 32... gxf4 {[%clk 0:01:03.1]} 33. gxf4 {[%clk 0:00:51.8]}
33... Ng6 {[%clk 0:00:59.2]} 34. Qc8+ {[%clk 0:00:44.9]} 34... Bf8 {[%clk
0:00:44.1]} 35. Be8 {[%clk 0:00:36.1]} 35... b3 {[%clk 0:00:39.3]} 36. Qd7
{[%clk 0:00:35.4]} 36... Nh8 {[%clk 0:00:39.6]} 37. Qg4+ {[%clk 0:00:28]} 37...
Ng6 {[%clk 0:00:39.5]} 38. f5 {[%clk 0:00:27.7]} 38... h5 {[%clk 0:00:31.7]} 39.
Qg3 {[%clk 0:00:24.5]} 39... Bg7 {[%clk 0:00:30.3]} 40. Bxf7+ {[%clk 0:00:20.6]}
40... Kxf7 {[%clk 0:00:29.6]} 41. Qxg6+ {[%clk 0:00:20.8]} 41... Kf8 {[%clk
0:00:26.5]} 42. f6 {[%clk 0:00:21.3]} 42... Bxf6 {[%clk 0:00:27.2]} 43. Qxf6+
{[%clk 0:00:21.6]} 43... Ke8 {[%clk 0:00:28.1]} 44. Qxb2 {[%clk 0:00:22.2]}
44... c4 {[%clk 0:00:18.4]} 45. Qc3 {[%clk 0:00:22.1]} 45... b2 {[%clk
0:00:17.7]} 46. Qxb2 {[%clk 0:00:22.1]} 46... h4 {[%clk 0:00:17.8]} 47. Qc3
{[%clk 0:00:22.1]} 47... h3 {[%clk 0:00:18.7]} 48. Kxh3 {[%clk 0:00:22.3]} 48...
Ke7 {[%clk 0:00:18.6]} 49. Qxc4 {[%clk 0:00:22.6]} 49... Kf6 {[%clk 0:00:19.5]}
50. Qf4+ {[%clk 0:00:22.6]} 50... Kg6 {[%clk 0:00:19.7]} 51. Qxd6+ {[%clk
0:00:22.4]} 51... Kh5 {[%clk 0:00:20.6]} 52. Qe5+ {[%clk 0:00:22.1]} 52... Kg6
{[%clk 0:00:20.6]} 53. Qg3+ {[%clk 0:00:22]} 53... Kh6 {[%clk 0:00:21.5]} 54. d6
{[%clk 0:00:21.8]} 54... Kh5 {[%clk 0:00:22.4]} 55. Qg4+ {[%clk 0:00:21.5]}
55... Kh6 {[%clk 0:00:23.3]} 56. d7 {[%clk 0:00:21.5]} 56... Kh7 {[%clk
0:00:23.8]} 57. d8=Q {[%clk 0:00:20.6]} 57... Kh6 {[%clk 0:00:24.7]} 58. Qh8#
{[%clk 0:00:20.2]} 1-0

[Event "Early-Titled-Tuesday-Blitz-January-30-2024"]
[Site "Chess.com"]
[Date "2024.01.30"]
[Round "3"]
[White "Cambek64"]
[Black "manitodeplomo"]
[Result "0-1"]
[WhiteElo "2502"]
[BlackElo "2698"]
[TimeControl "180+1"]
[EndTime "8:30:46 PST"]
[Termination "manitodeplomo won on time"]

1. d4 {[%clk 0:02:56]} 1... g6 {[%clk 0:02:50.7]} 2. Nf3 {[%clk 0:02:52.9]} 2...
Bg7 {[%clk 0:02:50.8]} 3. e4 {[%clk 0:02:53.1]} 3... c5 {[%clk 0:02:49.5]} 4. d5
{[%clk 0:02:52.1]} 4... d6 {[%clk 0:02:48.3]} 5. Nc3 {[%clk 0:02:43]} 5... Nf6
{[%clk 0:02:46.1]} 6. Bb5+ {[%clk 0:02:38.1]} 6... Bd7 {[%clk 0:02:45.9]} 7. a4
{[%clk 0:02:38.6]} 7... Bxb5 {[%clk 0:02:44.3]} 8. axb5 {[%clk 0:02:38.4]} 8...
Nbd7 {[%clk 0:02:45.2]} 9. h3 {[%clk 0:02:37.3]} 9... O-O {[%clk 0:02:46.1]} 10.
O-O {[%clk 0:02:37.1]} 10... Ne8 {[%clk 0:02:46.4]} 11. Bf4 {[%clk 0:02:36]}
11... Nc7 {[%clk 0:02:47.3]} 12. Qd2 {[%clk 0:02:30.9]} 12... Nb6 {[%clk
0:02:43.6]} 13. b3 {[%clk 0:02:29]} 13... Qd7 {[%clk 0:02:39.1]} 14. Bh6 {[%clk
0:02:20.4]} 14... Nxb5 {[%clk 0:02:33.2]} 15. Bxg7 {[%clk 0:02:19]} 15... Kxg7
{[%clk 0:02:31.4]} 16. Ra5 {[%clk 0:01:56.8]} 16... Nc7 {[%clk 0:02:17.9]} 17.
Rfa1 {[%clk 0:01:53.5]} 17... Nc8 {[%clk 0:02:16.7]} 18. e5 {[%clk 0:01:36.8]}
18... b6 {[%clk 0:02:09.7]} 19. R5a4 {[%clk 0:01:35.4]} 19... h6 {[%clk
0:01:51.4]} 20. Rh4 {[%clk 0:01:35]} 20... Rh8 {[%clk 0:01:50.5]} 21. Ne4 {[%clk
0:01:27.6]} 21... f6 {[%clk 0:01:44.5]} 22. e6 {[%clk 0:01:19.6]} 22... Qe8
{[%clk 0:01:36.8]} 23. Ng3 {[%clk 0:01:11.3]} 23... a5 {[%clk 0:01:24.9]} 24.
Rg4 {[%clk 0:01:04.3]} 24... h5 {[%clk 0:01:07.6]} 25. Rh4 {[%clk 0:00:40.8]}
25... Rh6 {[%clk 0:00:44.8]} 26. c4 {[%clk 0:00:37.6]} 26... a4 {[%clk
0:00:41.7]} 27. bxa4 {[%clk 0:00:33.2]} 27... Rxa4 {[%clk 0:00:42.6]} 28. Rc1
{[%clk 0:00:21.1]} 28... b5 {[%clk 0:00:40.4]} 29. cxb5 {[%clk 0:00:20]} 29...
Qxb5 {[%clk 0:00:37.2]} 30. Rxa4 {[%clk 0:00:15.1]} 30... Qxa4 {[%clk
0:00:38.1]} 31. Rb1 {[%clk 0:00:13.9]} 31... Qa8 {[%clk 0:00:37.7]} 32. Rd1
{[%clk 0:00:12.1]} 32... Nb6 {[%clk 0:00:36.3]} 33. Nh4 {[%clk 0:00:12.2]} 33...
Kh7 {[%clk 0:00:28.8]} 34. Ngf5 {[%clk 0:00:09.8]} 34... gxf5 {[%clk 0:00:29.7]}
35. Nxf5 {[%clk 0:00:09.7]} 35... Rg6 {[%clk 0:00:30.2]} 36. Nxe7 {[%clk
0:00:07]} 36... Rg5 {[%clk 0:00:29.8]} 37. f4 {[%clk 0:00:05.7]} 37... Rg7
{[%clk 0:00:21.4]} 38. Qc2+ {[%clk 0:00:05.5]} 38... Kh8 {[%clk 0:00:20.3]} 39.
Qf5 {[%clk 0:00:05.7]} 39... Nbxd5 {[%clk 0:00:17.1]} 40. Nxd5 {[%clk
0:00:01.2]} 40... Nxd5 {[%clk 0:00:16.7]} 0-1

[Event "Early-Titled-Tuesday-Blitz-January-30-2024"]
[Site "Chess.com"]
[Date "2024.01.30"]
[Round "3"]
[White "Roosters19"]
[Black "IlanSchnaider"]
[Result "0-1"]
[WhiteElo "2309"]
[BlackElo "2654"]
[TimeControl "180+1"]
[EndTime "8:30:48 PST"]
[Termination "IlanSchnaider won by checkmate"]

1. d4 {[%clk 0:03:00.9]} 1... d5 {[%clk 0:03:00.1]} 2. Nf3 {[%clk 0:02:59.9]}
2... Nf6 {[%clk 0:03:00.3]} 3. Bf4 {[%clk 0:02:59.7]} 3... c5 {[%clk 0:03:00]}
4. e3 {[%clk 0:02:59.2]} 4... e6 {[%clk 0:02:59.3]} 5. Nbd2 {[%clk 0:02:58.5]}
5... Bd6 {[%clk 0:02:59.9]} 6. Bg3 {[%clk 0:02:58.5]} 6... Qc7 {[%clk
0:02:59.4]} 7. c3 {[%clk 0:02:58.1]} 7... Nbd7 {[%clk 0:02:59.6]} 8. Bd3 {[%clk
0:02:57.9]} 8... b6 {[%clk 0:02:59.5]} 9. Qe2 {[%clk 0:02:57.4]} 9... Bb7 {[%clk
0:02:59.9]} 10. dxc5 {[%clk 0:02:49.2]} 10... Nxc5 {[%clk 0:02:59.5]} 11. Bb5+
{[%clk 0:02:48.5]} 11... Bc6 {[%clk 0:02:59.7]} 12. Nd4 {[%clk 0:02:46.6]} 12...
Bd7 {[%clk 0:02:50.7]} 13. a4 {[%clk 0:02:12.4]} 13... h6 {[%clk 0:02:43.9]} 14.
O-O {[%clk 0:01:59.5]} 14... Bxg3 {[%clk 0:02:43.7]} 15. hxg3 {[%clk 0:01:59.1]}
15... e5 {[%clk 0:02:38.3]} 16. Bxd7+ {[%clk 0:01:51.9]} 16... Qxd7 {[%clk
0:02:37]} 17. Nb5 {[%clk 0:01:51.6]} 17... a6 {[%clk 0:02:33.3]} 18. Na3 {[%clk
0:01:49.6]} 18... O-O {[%clk 0:02:33.4]} 19. b3 {[%clk 0:01:47.5]} 19... Rac8
{[%clk 0:02:30.9]} 20. Rac1 {[%clk 0:01:44.8]} 20... Nfe4 {[%clk 0:02:26.2]} 21.
Nxe4 {[%clk 0:01:40.5]} 21... dxe4 {[%clk 0:02:27.1]} 22. Rfd1 {[%clk 0:01:39]}
22... Nd3 {[%clk 0:02:23.8]} 23. Rb1 {[%clk 0:01:35.2]} 23... Rxc3 {[%clk
0:02:22.6]} 24. Nc4 {[%clk 0:01:32.2]} 24... b5 {[%clk 0:01:36.5]} 25. Qd2
{[%clk 0:01:25.9]} 25... b4 {[%clk 0:00:58.5]} 26. Nxe5 {[%clk 0:01:22.9]} 26...
Qf5 {[%clk 0:00:57]} 27. Nc4 {[%clk 0:01:20.7]} 27... Qf6 {[%clk 0:00:37.7]} 28.
Rf1 {[%clk 0:01:19.4]} 28... Rc8 {[%clk 0:00:31.4]} 29. f3 {[%clk 0:01:13.9]}
29... Qg5 {[%clk 0:00:22]} 30. fxe4 {[%clk 0:01:03.5]} 30... Qxg3 {[%clk
0:00:17.9]} 31. Rf3 {[%clk 0:01:03.5]} 31... Qg6 {[%clk 0:00:16.3]} 32. e5
{[%clk 0:00:59]} 32... Nxe5 {[%clk 0:00:14.3]} 33. Nxe5 {[%clk 0:00:55.5]} 33...
Qxb1+ {[%clk 0:00:14.2]} 34. Kh2 {[%clk 0:00:56.2]} 34... Qe4 {[%clk 0:00:11.5]}
35. Nc4 {[%clk 0:00:39.9]} 35... Rc2 {[%clk 0:00:09.2]} 36. Qd1 {[%clk
0:00:33.7]} 36... R2xc4 {[%clk 0:00:05.4]} 37. bxc4 {[%clk 0:00:32.7]} 37...
Qxc4 {[%clk 0:00:06.3]} 38. Rf4 {[%clk 0:00:30.7]} 38... Qc5 {[%clk 0:00:03.8]}
39. Qb3 {[%clk 0:00:29.6]} 39... Qh5+ {[%clk 0:00:03.8]} 40. Kg3 {[%clk
0:00:29.3]} 40... Qg6+ {[%clk 0:00:03.6]} 41. Kf3 {[%clk 0:00:28.7]} 41... a5
{[%clk 0:00:03.4]} 42. g4 {[%clk 0:00:26.9]} 42... Rc3 {[%clk 0:00:03.7]} 43.
Qd5 {[%clk 0:00:25.9]} 43... Qe6 {[%clk 0:00:04]} 44. Qa8+ {[%clk 0:00:20.5]}
44... Kh7 {[%clk 0:00:04.4]} 45. Re4 {[%clk 0:00:20.8]} 45... Qf6+ {[%clk
0:00:04.3]} 46. Rf4 {[%clk 0:00:21]} 46... Qg6 {[%clk 0:00:03.4]} 47. Qxa5
{[%clk 0:00:18.7]} 47... Qc6+ {[%clk 0:00:03.6]} 48. Kf2 {[%clk 0:00:16.7]}
48... Rc2+ {[%clk 0:00:03.8]} 49. Kg3 {[%clk 0:00:16.7]} 49... Qg2+ {[%clk
0:00:04]} 50. Kh4 {[%clk 0:00:16.9]} 50... Qh2# {[%clk 0:00:04.7]} 0-1

[Event "Early-Titled-Tuesday-Blitz-January-30-2024"]
[Site "Chess.com"]
[Date "2024.01.30"]
[Round "3"]
[White "Vsevolod_Ovchinnikov"]
[Black "lucliasco"]
[Result "0-1"]
[WhiteElo "2617"]
[BlackElo "2886"]
[TimeControl "180+1"]
[EndTime "8:30:49 PST"]
[Termination "lucliasco won by resignation"]

1. g3 {[%clk 0:03:00.9]} 1... Nf6 {[%clk 0:02:57.9]} 2. Bg2 {[%clk 0:03:01.5]}
2... d5 {[%clk 0:02:58.2]} 3. c4 {[%clk 0:03:02.3]} 3... c6 {[%clk 0:02:57.6]}
4. Nf3 {[%clk 0:03:02.1]} 4... Bf5 {[%clk 0:02:48.7]} 5. b3 {[%clk 0:03:02]}
5... e6 {[%clk 0:02:48.3]} 6. Bb2 {[%clk 0:03:02]} 6... Be7 {[%clk 0:02:47.6]}
7. O-O {[%clk 0:03:02.4]} 7... O-O {[%clk 0:02:46.9]} 8. d3 {[%clk 0:03:03.1]}
8... Nbd7 {[%clk 0:02:43.9]} 9. Nbd2 {[%clk 0:03:02.1]} 9... h6 {[%clk 0:02:43]}
10. a3 {[%clk 0:03:02.1]} 10... a5 {[%clk 0:02:41.8]} 11. Bc3 {[%clk 0:03:01.2]}
11... b5 {[%clk 0:02:38.9]} 12. cxb5 {[%clk 0:03:01.2]} 12... cxb5 {[%clk
0:02:38.3]} 13. b4 {[%clk 0:03:01.8]} 13... axb4 {[%clk 0:02:33.2]} 14. axb4
{[%clk 0:03:02.7]} 14... Qc7 {[%clk 0:02:32.5]} 15. Qb3 {[%clk 0:03:01.8]} 15...
Rxa1 {[%clk 0:02:26.1]} 16. Rxa1 {[%clk 0:02:54]} 16... Rc8 {[%clk 0:02:27]} 17.
Rc1 {[%clk 0:02:32.4]} 17... Qb6 {[%clk 0:02:13.2]} 18. Qb2 {[%clk 0:02:25.4]}
18... Bf8 {[%clk 0:01:52.7]} 19. Nb3 {[%clk 0:02:18.7]} 19... Ne8 {[%clk
0:01:33.1]} 20. h3 {[%clk 0:01:55.9]} 20... Bh7 {[%clk 0:01:32.1]} 21. Bf1
{[%clk 0:01:45.8]} 21... f6 {[%clk 0:01:16.8]} 22. Bd4 {[%clk 0:01:43.5]} 22...
Qb8 {[%clk 0:01:15.4]} 23. Rxc8 {[%clk 0:01:40.9]} 23... Qxc8 {[%clk 0:01:16.3]}
24. Na5 {[%clk 0:01:39.2]} 24... e5 {[%clk 0:01:13.5]} 25. Bc3 {[%clk
0:01:38.9]} 25... d4 {[%clk 0:01:13.2]} 26. Be1 {[%clk 0:01:38.8]} 26... Kh8
{[%clk 0:01:13.7]} 27. h4 {[%clk 0:01:26.4]} 27... Nb6 {[%clk 0:01:11.6]} 28.
Kh2 {[%clk 0:01:21.9]} 28... Na4 {[%clk 0:01:11.2]} 29. Qb1 {[%clk 0:01:00.2]}
29... Nc3 {[%clk 0:01:10.5]} 30. Qb2 {[%clk 0:00:57.8]} 30... Bf5 {[%clk
0:01:00]} 31. Nd2 {[%clk 0:00:45.1]} 31... Nc7 {[%clk 0:00:54.5]} 32. f3 {[%clk
0:00:11]} 32... N7d5 {[%clk 0:00:51.5]} 33. Ne4 {[%clk 0:00:11.7]} 33... Bxe4
{[%clk 0:00:45.9]} 34. dxe4 {[%clk 0:00:11.3]} 34... Nxb4 {[%clk 0:00:45.8]} 35.
Nb3 {[%clk 0:00:10]} 35... Nba2 {[%clk 0:00:42]} 36. Nc1 {[%clk 0:00:08.6]}
36... Nxc1 {[%clk 0:00:41.4]} 37. Qxc1 {[%clk 0:00:09.5]} 37... b4 {[%clk
0:00:40.4]} 38. e3 {[%clk 0:00:09.6]} 38... Bc5 {[%clk 0:00:37.2]} 39. exd4
{[%clk 0:00:08.9]} 39... Bxd4 {[%clk 0:00:37.2]} 40. Qc2 {[%clk 0:00:07.5]}
40... Qe6 {[%clk 0:00:33]} 41. Bd3 {[%clk 0:00:06.1]} 41... b3 {[%clk
0:00:31.9]} 42. Qb2 {[%clk 0:00:04.5]} 42... Nd1 {[%clk 0:00:29.8]} 43. Qd2
{[%clk 0:00:04.5]} 43... Ne3 {[%clk 0:00:28.5]} 44. Qb4 {[%clk 0:00:04.1]} 44...
b2 {[%clk 0:00:27.8]} 45. Qb8+ {[%clk 0:00:03.9]} 45... Qg8 {[%clk 0:00:27.7]}
46. Qxg8+ {[%clk 0:00:02.9]} 46... Kxg8 {[%clk 0:00:28.6]} 47. Bd2 {[%clk
0:00:03.4]} 47... Nf1+ {[%clk 0:00:23.2]} 48. Kg2 {[%clk 0:00:03.3]} 48... Nxd2
{[%clk 0:00:23.5]} 0-1

[Event "Early-Titled-Tuesday-Blitz-January-30-2024"]
[Site "Chess.com"]
[Date "2024.01.30"]
[Round "3"]
[White "WiktoriaPOL"]
[Black "atwalcb"]
[Result "0-1"]
[WhiteElo "2250"]
[BlackElo "2498"]
[TimeControl "180+1"]
[EndTime "8:30:52 PST"]
[Termination "atwalcb won on time"]

1. c4 {[%clk 0:02:58.2]} 1... e5 {[%clk 0:02:57.5]} 2. Nc3 {[%clk 0:02:57.3]}
2... Nc6 {[%clk 0:02:55.3]} 3. Nf3 {[%clk 0:02:57]} 3... f5 {[%clk 0:02:48.1]}
4. g3 {[%clk 0:02:53.9]} 4... e4 {[%clk 0:02:40.3]} 5. Nh4 {[%clk 0:02:53.4]}
5... d6 {[%clk 0:02:35.8]} 6. d3 {[%clk 0:02:47.7]} 6... exd3 {[%clk 0:02:20.7]}
7. Qxd3 {[%clk 0:02:45.6]} 7... g6 {[%clk 0:02:02]} 8. Nf3 {[%clk 0:02:37.7]}
8... Bg7 {[%clk 0:02:00.7]} 9. Bg5 {[%clk 0:02:35.2]} 9... Qd7 {[%clk
0:01:28.4]} 10. Bg2 {[%clk 0:01:57]} 10... h6 {[%clk 0:01:26.1]} 11. Be3 {[%clk
0:01:54.1]} 11... Nf6 {[%clk 0:01:26.5]} 12. Nh4 {[%clk 0:01:38.4]} 12... g5
{[%clk 0:01:08.8]} 13. Ng6 {[%clk 0:01:31.5]} 13... Rg8 {[%clk 0:01:00]} 14. h4
{[%clk 0:01:29.8]} 14... Kf7 {[%clk 0:00:53.4]} 15. h5 {[%clk 0:01:22.8]} 15...
Nxh5 {[%clk 0:00:39.6]} 16. Bd5+ {[%clk 0:01:20]} 16... Kxg6 {[%clk 0:00:37]}
17. Bxg8 {[%clk 0:01:19.6]} 17... Ne5 {[%clk 0:00:33]} 18. Qc2 {[%clk
0:01:16.8]} 18... c6 {[%clk 0:00:31.7]} 19. O-O-O {[%clk 0:01:04.7]} 19... Nf6
{[%clk 0:00:31.2]} 20. Bd4 {[%clk 0:00:52.6]} 20... Qe7 {[%clk 0:00:24.3]} 21.
c5 {[%clk 0:00:34.6]} 21... Nxg8 {[%clk 0:00:18.3]} 22. cxd6 {[%clk 0:00:33.8]}
22... Qxd6 {[%clk 0:00:19.2]} 23. f4 {[%clk 0:00:25.4]} 23... Be6 {[%clk
0:00:06]} 24. fxe5 {[%clk 0:00:23.6]} 24... Bxe5 {[%clk 0:00:06.9]} 25. Bxe5
{[%clk 0:00:11.3]} 25... Qxe5 {[%clk 0:00:07.8]} 26. e4 {[%clk 0:00:07.7]} 26...
f4 {[%clk 0:00:06.7]} 27. gxf4 {[%clk 0:00:07.2]} 27... Qxf4+ {[%clk 0:00:07.6]}
28. Kb1 {[%clk 0:00:05.8]} 28... Rf8 {[%clk 0:00:07.1]} 29. Rc1 {[%clk
0:00:03.1]} 29... Qe5 {[%clk 0:00:07.1]} 30. Rcg1 {[%clk 0:00:03.1]} 30... Nf6
{[%clk 0:00:06.8]} 31. Qg2 {[%clk 0:00:03.7]} 31... g4 {[%clk 0:00:06.5]} 32.
Qe2 {[%clk 0:00:03.1]} 32... h5 {[%clk 0:00:06.8]} 33. Qe3 {[%clk 0:00:03.2]}
33... b5 {[%clk 0:00:07]} 34. Ne2 {[%clk 0:00:02.4]} 34... Qxe4+ {[%clk
0:00:04.4]} 35. Qxe4+ {[%clk 0:00:02.1]} 35... Nxe4 {[%clk 0:00:05.3]} 36. Nd4
{[%clk 0:00:02.4]} 36... Bd5 {[%clk 0:00:02.3]} 37. Rh2 {[%clk 0:00:02.1]} 37...
Ng5 {[%clk 0:00:01.7]} 38. Nc2 {[%clk 0:00:01.2]} 38... Be4 {[%clk 0:00:01.4]}
39. Kc1 {[%clk 0:00:01.2]} 39... Nf3 {[%clk 0:00:01.1]} 0-1

[Event "Early-Titled-Tuesday-Blitz-January-30-2024"]
[Site "Chess.com"]
[Date "2024.01.30"]
[Round "3"]
[White "Philosopherrr"]
[Black "gshwbedhkhd"]
[Result "0-1"]
[WhiteElo "2386"]
[BlackElo "2591"]
[TimeControl "180+1"]
[EndTime "8:30:54 PST"]
[Termination "gshwbedhkhd won on time"]

1. e4 {[%clk 0:02:57.3]} 1... c5 {[%clk 0:02:55.7]} 2. Nf3 {[%clk 0:02:49]} 2...
e6 {[%clk 0:02:52.5]} 3. d4 {[%clk 0:02:48.6]} 3... cxd4 {[%clk 0:02:53.4]} 4.
Nxd4 {[%clk 0:02:49.3]} 4... Nf6 {[%clk 0:02:52.5]} 5. Nc3 {[%clk 0:02:47.7]}
5... Nc6 {[%clk 0:02:53]} 6. g3 {[%clk 0:02:45.4]} 6... Be7 {[%clk 0:02:48.9]}
7. Bg2 {[%clk 0:02:45.2]} 7... Qc7 {[%clk 0:02:45.8]} 8. O-O {[%clk 0:02:44.7]}
8... a6 {[%clk 0:02:45.1]} 9. Re1 {[%clk 0:02:01.2]} 9... d6 {[%clk 0:02:42.3]}
10. Nxc6 {[%clk 0:01:57.8]} 10... bxc6 {[%clk 0:02:40.2]} 11. e5 {[%clk
0:01:58.1]} 11... dxe5 {[%clk 0:02:38.6]} 12. Rxe5 {[%clk 0:01:57.1]} 12... O-O
{[%clk 0:02:33.5]} 13. Bf4 {[%clk 0:01:56]} 13... Qb6 {[%clk 0:02:24.2]} 14. Na4
{[%clk 0:01:48.9]} 14... Qb7 {[%clk 0:02:14.2]} 15. c4 {[%clk 0:01:46.3]} 15...
Rd8 {[%clk 0:02:12.2]} 16. Qc2 {[%clk 0:01:35]} 16... Bd7 {[%clk 0:02:10.5]} 17.
Rd1 {[%clk 0:01:30.7]} 17... Be8 {[%clk 0:02:08.8]} 18. Ree1 {[%clk 0:01:21]}
18... Nd7 {[%clk 0:01:56.4]} 19. Bd6 {[%clk 0:01:13.8]} 19... Bf6 {[%clk
0:01:41.2]} 20. b3 {[%clk 0:01:05.3]} 20... g6 {[%clk 0:01:26.5]} 21. Rd2 {[%clk
0:00:58.5]} 21... Bg7 {[%clk 0:01:22.4]} 22. Red1 {[%clk 0:00:58]} 22... Nf6
{[%clk 0:01:22.1]} 23. Be5 {[%clk 0:00:50.5]} 23... Rxd2 {[%clk 0:01:08.9]} 24.
Rxd2 {[%clk 0:00:44.7]} 24... Rc8 {[%clk 0:01:05.9]} 25. Qb2 {[%clk 0:00:40.5]}
25... Nh5 {[%clk 0:01:02]} 26. Bf3 {[%clk 0:00:39.2]} 26... Bxe5 {[%clk
0:00:59.3]} 27. Qxe5 {[%clk 0:00:38]} 27... Ng7 {[%clk 0:01:00.2]} 28. g4 {[%clk
0:00:34.3]} 28... Qb4 {[%clk 0:00:54.1]} 29. Qc3 {[%clk 0:00:27]} 29... Qe7
{[%clk 0:00:51.4]} 30. c5 {[%clk 0:00:24.2]} 30... Qg5 {[%clk 0:00:49.7]} 31.
Nb6 {[%clk 0:00:19.8]} 31... Rb8 {[%clk 0:00:40.7]} 32. Qe3 {[%clk 0:00:19.5]}
32... Qe7 {[%clk 0:00:37.2]} 33. Qe5 {[%clk 0:00:17.7]} 33... Rb7 {[%clk
0:00:35]} 34. b4 {[%clk 0:00:16.6]} 34... f6 {[%clk 0:00:34.3]} 35. Qd6 {[%clk
0:00:16.5]} 35... Rc7 {[%clk 0:00:33.6]} 36. Qxe7 {[%clk 0:00:16.6]} 36... Rxe7
{[%clk 0:00:34.5]} 37. Rd8 {[%clk 0:00:17.2]} 37... Kf7 {[%clk 0:00:34.9]} 38.
Nc8 {[%clk 0:00:17.6]} 38... Rc7 {[%clk 0:00:32.8]} 39. Nd6+ {[%clk 0:00:15.7]}
39... Ke7 {[%clk 0:00:33.2]} 40. Ra8 {[%clk 0:00:02.2]} 40... e5 {[%clk
0:00:31.4]} 41. Rxa6 {[%clk 0:00:03.1]} 41... Bd7 {[%clk 0:00:29]} 42. a3 {[%clk
0:00:03.9]} 42... Ne6 {[%clk 0:00:28.8]} 43. h3 {[%clk 0:00:04.4]} 43... Nd4
{[%clk 0:00:29.4]} 44. Bg2 {[%clk 0:00:05]} 44... f5 {[%clk 0:00:29.3]} 45. Nc4
{[%clk 0:00:05.6]} 45... e4 {[%clk 0:00:28.6]} 46. Ne5 {[%clk 0:00:06.1]} 46...
Ke6 {[%clk 0:00:27.5]} 47. gxf5+ {[%clk 0:00:02.5]} 47... gxf5 {[%clk
0:00:27.4]} 0-1